fUST/lending_fUST_20260117
["ID","MTS","AMOUNT","RATE_DAILY","PERIOD"]
[402215638,1768606281139,-167.0,0.000225,120]
[402215639,1768606281154,-1034.0622458,0.000225,2]
[402215640,1768606281169,-827.0,0.00022559,120]
[402215641,1768606281183,-372.0,0.00022574,120]
[402215642,1768606281198,-224.0,0.00022574,120]
[402215643,1768606281212,-224.7449141,0.00022702,79]
[402215644,1768606281228,-180.2648404,0.00022702,79]
[402215645,1768606281243,-1562.38254651,0.00022739,120]
[402215646,1768606281257,-974.84761092,0.00022739,3]
[402215647,1768606281272,-528.43400544,0.00022739,3]
[402215648,1768606281286,-519.37572596,0.00022739,3]
[402215649,1768606281302,-500.0,0.00022739,3]
[402215650,1768606281316,-500.0,0.00022739,3]
[402215651,1768606281330,-500.0,0.00022739,3]
[402215652,1768606281345,-500.0,0.00022739,3]
[402215653,1768606281359,-500.0,0.00022739,3]
[402215654,1768606281373,-500.0,0.00022739,3]
[402215655,1768606281388,-500.0,0.00022739,3]
[402215656,1768606281403,-500.0,0.00022739,3]
[402215657,1768606281416,-500.0,0.00022739,3]
[402215658,1768606281430,-540.76160659,0.00022739,3]
[402215659,1768606281444,-500.0,0.00022739,3]
[402215660,1768606281458,-500.0,0.00022739,3]
[402215661,1768606281472,-590.19269095,0.00022739,3]
[402215662,1768606281487,-501.54965316,0.00022739,3]
[402215663,1768606281502,-500.0,0.00022739,3]
[402215664,1768606281516,-500.0,0.00022739,3]
[402215665,1768606281531,-500.0,0.00022739,3]
[402215666,1768606281545,-500.0,0.00022739,3]
[402215667,1768606281559,-500.0,0.00022739,3]
[402215668,1768606281573,-552.12,0.00022739,3]
[402215669,1768606281587,-500.0,0.00022739,3]
[402215670,1768606281601,-500.0,0.00022739,3]
[402215671,1768606281616,-544.00421271,0.00022739,3]
[402215672,1768606281630,-500.0,0.00022739,3]
[402215673,1768606281644,-394.2507075,0.00022739,3]
[402215674,1768606281663,-1306.68,0.00022739,3]
[402215675,1768606281677,-529.00851289,0.00022739,3]
[402215676,1768606281691,-500.0,0.00022739,3]
[402215677,1768606281706,-545.9,0.00022739,3]
[402215678,1768606281722,-580.5,0.00022739,3]
[402215679,1768606281736,-613.28,0.00022739,3]
[402215680,1768606281750,-500.0,0.00022739,3]
[402215681,1768606281764,-628.62,0.00022739,3]
[402215682,1768606281779,-500.0,0.00022739,3]
[402215683,1768606281793,-699.17,0.00022739,3]
[402215684,1768606281808,-500.0,0.00022739,3]
[402215685,1768606281822,-679.33,0.00022739,3]
[402215686,1768606281836,-500.0,0.00022739,3]
[402215687,1768606281850,-500.0,0.00022739,3]
[402215688,1768606281864,-357.25321189,0.00022739,3]
[402215689,1768606281878,-500.0,0.00022739,3]
[402215690,1768606281893,-500.0,0.00022739,3]
[402215691,1768606281911,-500.0,0.00022739,3]
[402215692,1768606281925,-1088.64,0.00022739,3]
[402215693,1768606281939,-553.67434554,0.00022739,3]
[402215694,1768606281955,-500.0,0.00022739,3]
[402215695,1768606281970,-577.81,0.00022739,3]
[402215696,1768606281988,-500.0,0.00022739,3]
[402215697,1768606282003,-913.53,0.00022739,3]
[402215698,1768606282018,-1092.57,0.00022739,3]
[402215699,1768606282033,-502.12449013,0.00022739,3]
[402215700,1768606282047,-500.0,0.00022739,3]
[402215701,1768606282064,-500.0,0.00022739,3]
[402215702,1768606282078,-502.89,0.00022739,3]
[402215703,1768606282093,-805.67,0.00022739,3]
[402215704,1768606282107,-500.0,0.00022739,3]
[402215705,1768606282121,-612.67,0.00022739,3]
[402215706,1768606282136,-500.0,0.00022739,3]
[402215707,1768606282150,-500.0,0.00022739,3]
[402215708,1768606282165,-500.0,0.00022739,3]
[402215709,1768606282180,-500.0,0.00022739,3]
[402215710,1768606282194,-500.0,0.00022739,3]
[402215711,1768606282209,-500.0,0.00022739,3]
[402215712,1768606282223,-1066.43,0.00022739,3]
[402215713,1768606282237,-1720.28,0.00022739,3]
[402215714,1768606282253,-500.0,0.00022739,3]
[402215715,1768606282266,-500.0,0.00022739,3]
[402215716,1768606282475,-528.71,0.00022739,3]
[402215717,1768606282485,-500.0,0.00022739,3]
[402215718,1768606282494,-984.57,0.00022739,3]
[402215719,1768606282503,-500.0,0.00022739,3]
[402215720,1768606282513,-844.99,0.00022739,3]
[402215721,1768606282522,-696.01,0.00022739,3]
[402215722,1768606282532,-500.0,0.00022739,3]
[402215723,1768606282541,-500.0,0.00022739,3]
[402215724,1768606282550,-500.0,0.00022739,3]
[402215725,1768606282559,-500.0,0.00022739,3]
[402215726,1768606282571,-501.33,0.00022739,3]
[402215727,1768606282580,-1000.0,0.00022739,2]
[402215728,1768606282590,-500.0,0.00022739,3]
[402215729,1768606282600,-500.0,0.00022739,3]
[402215730,1768606282610,-500.0,0.00022739,3]
[402215731,1768606282620,-1048.01,0.00022739,3]
[402215732,1768606282629,-500.0,0.00022739,3]
[402215733,1768606282637,-500.0,0.00022739,3]
[402215734,1768606282647,-500.0,0.00022739,3]
[402215735,1768606282656,-861.03,0.00022739,3]
[402215736,1768606282665,-666.35,0.00022739,3]
[402215737,1768606282674,-606.72,0.00022739,3]
[402215738,1768606282683,-500.0,0.00022739,3]
[402215739,1768606282692,-615.63,0.00022739,3]
[402215740,1768606282701,-596.29,0.00022739,3]
[402215741,1768606282712,-500.0,0.00022739,3]
[402215742,1768606282721,-772.71,0.00022739,3]
[402215743,1768606282731,-500.0,0.00022739,3]
[402215744,1768606282740,-555.87,0.00022739,3]
[402215745,1768606282750,-554.34,0.00022739,3]
[402215746,1768606282759,-500.0,0.00022739,3]
[402215747,1768606282769,-500.0,0.00022739,3]
[402215748,1768606282779,-287.17836282,0.00022739,3]
[402215749,1768606282789,-500.0,0.00022739,3]
[402215750,1768606282798,-486.45677138,0.00022739,3]
[402215751,1768606282807,-500.0,0.00022739,3]
[402215752,1768606282816,-500.0,0.00022739,3]
[402215753,1768606282825,-500.0,0.00022739,3]
[402215754,1768606282835,-1345.73,0.00022739,3]
[402215755,1768606282844,-779.61,0.00022739,3]
[402215756,1768606282853,-500.0,0.00022739,3]
[402215757,1768606282863,-500.0,0.00022739,3]
[402215758,1768606282872,-543.19920374,0.00022739,3]
[402215759,1768606282881,-500.0,0.00022739,3]
[402215760,1768606282891,-500.0,0.00022739,3]
[402215761,1768606282903,-500.0,0.00022739,3]
[402215762,1768606282913,-500.0,0.00022739,3]
[402215763,1768606282924,-887.1,0.00022739,3]
[402215764,1768606282933,-500.0,0.00022739,3]
[402215765,1768606282943,-500.0,0.00022739,3]
[402215766,1768606282953,-546.50384598,0.00022739,3]
[402215767,1768606282962,-500.0,0.00022739,3]
[402215768,1768606282972,-500.0,0.00022739,3]
[402215769,1768606282981,-500.0,0.00022739,3]
[402215770,1768606282991,-500.0,0.00022739,3]
[402215771,1768606283000,-500.0,0.00022739,3]
[402215772,1768606283010,-1640.86,0.00022739,3]
[402215773,1768606283021,-861.54,0.00022739,3]
[402215774,1768606283031,-791.65,0.00022739,3]
[402215775,1768606283040,-500.0,0.00022739,3]
[402215776,1768606283051,-500.0,0.00022739,3]
[402215777,1768606283060,-500.0,0.00022739,3]
[402215778,1768606283070,-500.0,0.00022739,3]
[402215779,1768606283079,-500.0,0.00022739,3]
[402215780,1768606283089,-742.29,0.00022739,3]
[402215781,1768606283098,-1663.66,0.00022739,3]
[402215782,1768606283107,-500.0,0.00022739,3]
[402215783,1768606283116,-607.94,0.00022739,3]
[402215784,1768606283126,-500.0,0.00022739,3]
[402215785,1768606283135,-819.63,0.00022739,3]
[402215786,1768606283144,-500.0,0.00022739,3]
[402215787,1768606283153,-994.98,0.00022739,3]
[402215788,1768606283162,-2128.03,0.00022739,3]
[402215789,1768606283172,-500.0,0.00022739,3]
[402215790,1768606283182,-556.64,0.00022739,3]
[402215791,1768606283191,-500.0,0.00022739,3]
[402215792,1768606283201,-564.3,0.00022739,3]
[402215793,1768606283211,-636.06,0.00022739,3]
[402215794,1768606283220,-343.57154264,0.00022739,3]
[402215795,1768606283229,-500.0,0.00022739,3]
[402215796,1768606283239,-804.01,0.00022739,3]
[402215797,1768606283248,-1029.6,0.00022739,3]
[402215798,1768606283257,-1160.25,0.00022739,3]
[402215799,1768606283267,-500.0,0.00022739,3]
[402215800,1768606283276,-500.0,0.00022739,3]
[402215801,1768606283286,-500.0,0.00022739,3]
[402215802,1768606283295,-530.21,0.00022739,3]
[402215803,1768606283304,-500.0,0.00022739,3]
[402215804,1768606283314,-500.0,0.00022739,3]
[402215805,1768606283323,-666.54,0.00022739,3]
[402215806,1768606283332,-500.0,0.00022739,3]
[402215807,1768606283342,-500.0,0.00022739,3]
[402215808,1768606283351,-694.83,0.00022739,3]
[402215809,1768606283360,-500.0,0.00022739,3]
[402215810,1768606283370,-500.0,0.00022739,3]
[402215811,1768606283379,-500.0,0.00022739,3]
[402215812,1768606283388,-637.8988904,0.00022739,3]
[402215813,1768606283398,-500.0,0.00022739,3]
[402215814,1768606283407,-500.0,0.00022739,3]
[402215815,1768606283417,-500.0,0.00022739,3]
[402215816,1768606283426,-1023.88,0.00022739,3]
[402215817,1768606283435,-500.0,0.00022739,3]
[402215818,1768606283444,-500.0,0.00022739,3]
[402215819,1768606283453,-1491.92,0.00022739,3]
[402215820,1768606283462,-500.0,0.00022739,3]
[402215821,1768606283471,-500.0,0.00022739,3]
[402215822,1768606283480,-500.0,0.00022739,3]
[402215823,1768606283490,-1676.49,0.00022739,3]
[402215824,1768606283500,-481.92473832,0.00022739,3]
[402215825,1768606283510,-500.0,0.00022739,3]
[402215826,1768606283519,-2078.85,0.00022739,3]
[402215827,1768606283528,-500.0,0.00022739,3]
[402215828,1768606283538,-500.0,0.00022739,3]
[402215829,1768606283547,-526.63,0.00022739,3]
[402215830,1768606283557,-500.0,0.00022739,3]
[402215831,1768606283566,-616.88,0.00022739,3]
[402215832,1768606283576,-1336.63,0.00022739,3]
[402215833,1768606283585,-500.0,0.00022739,3]
[402215834,1768606283595,-500.0,0.00022739,3]
[402215835,1768606283605,-503.95,0.00022739,3]
[402215836,1768606283614,-500.0,0.00022739,3]
[402215837,1768606283623,-500.0,0.00022739,3]
[402215838,1768606283632,-500.0,0.00022739,3]
[402215839,1768606283641,-500.0,0.00022739,3]
[402215840,1768606283650,-500.0,0.00022739,3]
[402215841,1768606283659,-1025.72,0.00022739,3]
[402215842,1768606283668,-500.0,0.00022739,3]
[402215843,1768606283678,-500.0,0.00022739,3]
[402215844,1768606283687,-854.24,0.00022739,3]
[402215845,1768606283696,-500.0,0.00022739,3]
[402215846,1768606283706,-624.94,0.00022739,3]
[402215847,1768606283715,-617.21618506,0.00022739,3]
[402215848,1768606283725,-1720.81,0.00022739,3]
[402215849,1768606283734,-1133.27,0.00022739,3]
[402215850,1768606283744,-500.0,0.00022739,3]
[402215851,1768606283754,-500.0,0.00022739,3]
[402215852,1768606283763,-500.0,0.00022739,3]
[402215853,1768606283772,-2379.42,0.00022739,3]
[402215854,1768606283782,-519.93035431,0.00022739,3]
[402215855,1768606283792,-500.0,0.00022739,3]
[402215856,1768606283801,-500.0,0.00022739,3]
[402215857,1768606283811,-500.0,0.00022739,3]
[402215858,1768606283820,-2019.88,0.00022739,3]
[402215859,1768606283831,-567.17497698,0.00022739,3]
[402215860,1768606283840,-631.18,0.00022739,3]
[402215861,1768606283850,-1069.82,0.00022739,3]
[402215862,1768606283859,-500.0,0.00022739,3]
[402215863,1768606283868,-500.0,0.00022739,3]
[402215864,1768606283877,-500.0,0.00022739,3]
[402215865,1768606283887,-500.0,0.00022739,3]
[402215866,1768606283896,-500.0,0.00022739,3]
[402215867,1768606283909,-736.14,0.00022739,3]
[402215868,1768606283918,-500.0,0.00022739,3]
[402215869,1768606283928,-845.07,0.00022739,3]
[402215870,1768606283937,-500.0,0.00022739,3]
[402215871,1768606283947,-500.0,0.00022739,3]
[402215872,1768606283956,-2028.81,0.00022739,3]
[402215873,1768606283966,-500.0,0.00022739,3]
[402215874,1768606283975,-923.34,0.00022739,3]
[402215875,1768606283987,-703.68,0.00022739,3]
[402215876,1768606283996,-500.0,0.00022739,3]
[402215877,1768606284006,-500.0,0.00022739,3]
[402215878,1768606284015,-500.0,0.00022739,3]
[402215879,1768606284024,-1350.15,0.00022739,3]
[402215880,1768606284033,-500.0,0.00022739,3]
[402215881,1768606284042,-500.0,0.00022739,3]
[402215882,1768606284052,-505.05,0.00022739,3]
[402215883,1768606284062,-500.0,0.00022739,3]
[402215884,1768606284071,-500.0,0.00022739,3]
[402215885,1768606284080,-607.14,0.00022739,3]
[402215886,1768606284089,-500.0,0.00022739,3]
[402215887,1768606284098,-1230.17,0.00022739,3]
[402215888,1768606284108,-500.0,0.00022739,3]
[402215889,1768606284117,-500.0,0.00022739,3]
[402215890,1768606284126,-500.0,0.00022739,3]
[402215891,1768606284135,-500.0,0.00022739,3]
[402215892,1768606284144,-500.0,0.00022739,3]
[402215893,1768606284153,-1798.83,0.00022739,3]
[402215894,1768606284162,-500.0,0.00022739,3]
[402215895,1768606284171,-1815.05,0.00022739,3]
[402215896,1768606284181,-500.0,0.00022739,3]
[402215897,1768606284190,-1108.94,0.00022739,3]
[402215898,1768606284199,-1029.96,0.00022739,3]
[402215899,1768606284209,-533.43,0.00022739,3]
[402215900,1768606284218,-500.0,0.00022739,3]
[402215901,1768606284227,-706.88,0.00022739,3]
[402215902,1768606284237,-845.49,0.00022739,3]
[402215903,1768606284246,-1047.78,0.00022739,3]
[402215904,1768606284255,-525.76,0.00022739,3]
[402215905,1768606284265,-785.98,0.00022739,3]
[402215906,1768606284274,-855.99,0.00022739,3]
[402215907,1768606284284,-500.0,0.00022739,3]
[402215908,1768606284294,-500.0,0.00022739,3]
[402215909,1768606284304,-500.0,0.00022739,3]
[402215910,1768606284314,-500.0,0.00022739,3]
[402215911,1768606284323,-500.0,0.00022739,3]
[402215912,1768606284332,-511.59,0.00022739,3]
[402215913,1768606284342,-2325.91,0.00022739,3]
[402215914,1768606284352,-500.0,0.00022739,3]
[402215915,1768606284361,-1219.03,0.00022739,3]
[402215916,1768606284373,-630.31,0.00022739,3]
[402215917,1768606284383,-2167.4,0.00022739,3]
[402215918,1768606284393,-965.59,0.00022739,3]
[402215919,1768606284403,-500.0,0.00022739,3]
[402215920,1768606284412,-523.59,0.00022739,3]
[402215921,1768606284421,-724.03,0.00022739,3]
[402215922,1768606284432,-1854.01,0.00022739,3]
[402215923,1768606284441,-812.22,0.00022739,3]
[402215924,1768606284450,-614.82,0.00022739,3]
[402215925,1768606284459,-787.07,0.00022739,3]
[402215926,1768606284468,-500.0,0.00022739,3]
[402215927,1768606284477,-500.0,0.00022739,3]
[402215928,1768606284487,-1122.88,0.00022739,3]
[402215929,1768606284496,-500.0,0.00022739,3]
[402215930,1768606284505,-505.49,0.00022739,3]
[402215931,1768606284514,-816.59,0.00022739,2]
[402215932,1768606284524,-500.0,0.00022739,3]
[402215933,1768606284533,-500.0,0.00022739,3]
[402215934,1768606284542,-500.0,0.00022739,3]
[402215935,1768606284552,-500.0,0.00022739,3]
[402215936,1768606284561,-1501.63,0.00022739,3]
[402215937,1768606284571,-500.0,0.00022739,3]
[402215938,1768606284580,-564.01,0.00022739,3]
[402215939,1768606284589,-983.25,0.00022739,3]
[402215940,1768606284599,-500.0,0.00022739,3]
[402215941,1768606284610,-1925.58,0.00022739,3]
[402215942,1768606284619,-500.0,0.00022739,3]
[402215943,1768606284629,-500.0,0.00022739,3]
[402215944,1768606284638,-687.65,0.00022739,3]
[402215945,1768606284647,-1993.75,0.00022739,3]
[402215946,1768606284657,-849.14,0.00022739,3]
[402215947,1768606284666,-1057.71,0.00022739,3]
[402215948,1768606284676,-500.0,0.00022739,3]
[402215949,1768606284685,-500.0,0.00022739,3]
[402215950,1768606284695,-565.62,0.00022739,3]
[402215951,1768606284705,-500.0,0.00022739,3]
[402215952,1768606284715,-500.0,0.00022739,3]
[402215953,1768606284724,-500.0,0.00022739,3]
[402215954,1768606284859,-512.27,0.00022739,3]
[402215955,1768606284883,-673.96,0.00022739,3]
[402215956,1768606284893,-500.0,0.00022739,3]
[402215957,1768606284905,-500.0,0.00022739,3]
[402215958,1768606284914,-1453.5,0.00022739,3]
[402215959,1768606284923,-1572.38,0.00022739,3]
[402215960,1768606284932,-500.0,0.00022739,3]
[402215961,1768606284941,-657.4,0.00022739,3]
[402215962,1768606284950,-500.0,0.00022739,3]
[402215963,1768606284959,-500.0,0.00022739,3]
[402215964,1768606284969,-602.92,0.00022739,3]
[402215965,1768606284980,-1264.0,0.00022739,3]
[402215966,1768606284989,-500.0,0.00022739,3]
[402215967,1768606284998,-1118.7,0.00022739,3]
[402215968,1768606285007,-1202.15,0.00022739,3]
[402215969,1768606285016,-500.0,0.00022739,3]
[402215970,1768606285025,-1418.91,0.00022739,3]
[402215971,1768606285034,-205.77221538,0.00022739,3]
[402215972,1768606285043,-1004.8,0.00022739,3]
[402215973,1768606285052,-1060.6,0.00022739,3]
[402215974,1768606285062,-500.0,0.00022739,3]
[402215975,1768606285071,-981.72,0.00022739,3]
[402215976,1768606285080,-500.0,0.00022739,3]
[402215977,1768606285089,-500.0,0.00022739,3]
[402215978,1768606285098,-465.35307757,0.00022739,3]
[402215979,1768606285107,-542.78,0.00022739,3]
[402215980,1768606285116,-500.0,0.00022739,3]
[402215981,1768606285126,-500.0,0.00022739,3]
[402215982,1768606285135,-500.0,0.00022739,3]
[402215983,1768606285144,-500.0,0.00022739,3]
[402215984,1768606285153,-500.0,0.00022739,3]
[402215985,1768606285162,-603.03,0.00022739,3]
[402215986,1768606285171,-756.59,0.00022739,3]
[402215987,1768606285180,-500.0,0.00022739,3]
[402215988,1768606285189,-655.85,0.00022739,3]
[402215989,1768606285199,-500.0,0.00022739,3]
[402215990,1768606285208,-675.18,0.00022739,3]
[402215991,1768606285217,-741.82,0.00022739,3]
[402215992,1768606285226,-500.0,0.00022739,3]
[402215993,1768606285236,-886.23,0.00022739,3]
[402215994,1768606285245,-500.0,0.00022739,3]
[402215995,1768606285254,-855.17,0.00022739,3]
[402215996,1768606285264,-500.0,0.00022739,3]
[402215997,1768606285273,-1710.56,0.00022739,3]
[402215998,1768606285282,-500.0,0.00022739,3]
[402215999,1768606285291,-661.66,0.00022739,3]
[402216000,1768606285300,-500.0,0.00022739,3]
[402216001,1768606285309,-500.0,0.00022739,3]
[402216002,1768606285318,-500.0,0.00022739,2]
[402216003,1768606285327,-500.0,0.00022739,3]
[402216004,1768606285335,-500.0,0.00022739,3]
[402216005,1768606285344,-500.0,0.00022739,3]
[402216006,1768606285353,-500.0,0.00022739,3]
[402216007,1768606285363,-500.0,0.00022739,3]
[402216008,1768606285372,-933.57,0.00022739,3]
[402216009,1768606285381,-500.0,0.00022739,3]
[402216010,1768606285390,-500.0,0.00022739,3]
[402216011,1768606285399,-500.0,0.00022739,3]
[402216012,1768606285407,-500.0,0.00022739,3]
[402216013,1768606285416,-525.64,0.00022739,3]
[402216014,1768606285425,-500.0,0.00022739,3]
[402216015,1768606285434,-500.0,0.00022739,3]
[402216016,1768606285443,-617.27278545,0.00022739,3]
[402216017,1768606285452,-1221.91,0.00022739,3]
[402216018,1768606285461,-500.0,0.00022739,3]
[402216019,1768606285471,-500.0,0.00022739,3]
[402216020,1768606285480,-500.0,0.00022739,3]
[402216021,1768606285489,-1263.43,0.00022739,3]
[402216022,1768606285498,-1622.98,0.00022739,3]
[402216023,1768606285507,-500.0,0.00022739,3]
[402216024,1768606285516,-500.0,0.00022739,3]
[402216025,1768606285525,-500.0,0.00022739,3]
[402216026,1768606285534,-500.0,0.00022739,3]
[402216027,1768606285545,-500.0,0.00022739,3]
[402216028,1768606285554,-500.0,0.00022739,3]
[402216029,1768606285563,-500.0,0.00022739,3]
[402216030,1768606285571,-976.58,0.00022739,3]
[402216031,1768606285580,-1186.99,0.00022739,3]
[402216032,1768606285589,-1159.08,0.00022739,3]
[402216033,1768606285599,-500.0,0.00022739,3]
[402216034,1768606285608,-500.0,0.00022739,3]
[402216035,1768606285618,-676.08,0.00022739,3]
[402216036,1768606285638,-713.98,0.00022739,3]
[402216037,1768606285649,-525.2,0.00022739,3]
[402216038,1768606285659,-543.89,0.00022739,3]
[402216039,1768606285670,-500.0,0.00022739,3]
[402216040,1768606285680,-500.0,0.00022739,3]
[402216041,1768606285689,-1200.0,0.00022739,3]
[402216042,1768606285699,-500.0,0.00022739,3]
[402216043,1768606285709,-533.63368913,0.00022739,3]
[402216044,1768606285718,-500.0,0.00022739,3]
[402216045,1768606285728,-2080.52,0.00022739,3]
[402216046,1768606285738,-546.51,0.00022739,3]
[402216047,1768606285748,-500.0,0.00022739,3]
[402216048,1768606285758,-500.0,0.00022739,3]
[402216049,1768606285768,-685.41,0.00022739,3]
[402216050,1768606285777,-500.0,0.00022739,3]
[402216051,1768606285788,-500.0,0.00022739,3]
[402216052,1768606285797,-500.0,0.00022739,3]
[402216053,1768606285807,-607.2,0.00022739,3]
[402216054,1768606285817,-500.0,0.00022739,3]
[402216055,1768606285827,-504.06,0.00022739,3]
[402216056,1768606285837,-500.0,0.00022739,3]
[402216057,1768606285847,-768.23,0.00022739,3]
[402216058,1768606285857,-500.0,0.00022739,3]
[402216059,1768606285867,-500.0,0.00022739,3]
[402216060,1768606285876,-500.0,0.00022739,3]
[402216061,1768606285886,-500.0,0.00022739,3]
[402216062,1768606285896,-500.0,0.00022739,3]
[402216063,1768606285908,-500.0,0.00022739,3]
[402216064,1768606285918,-931.4,0.00022739,3]
[402216065,1768606285927,-1364.94,0.00022739,3]
[402216066,1768606285937,-246.59853797,0.00022739,3]
[402216067,1768606285949,-500.0,0.00022739,3]
[402216068,1768606285958,-500.0,0.00022739,3]
[402216069,1768606285968,-982.13,0.00022739,3]
[402216070,1768606285979,-502.37,0.00022739,3]
[402216071,1768606285988,-525.93,0.00022739,3]
[402216072,1768606285999,-500.0,0.00022739,3]
[402216073,1768606286008,-1015.39,0.00022739,3]
[402216074,1768606286018,-1469.77,0.00022739,3]
[402216075,1768606286028,-1568.63,0.00022739,3]
[402216076,1768606286038,-500.0,0.00022739,3]
[402216077,1768606286047,-500.0,0.00022739,3]
[402216078,1768606286057,-500.0,0.00022739,3]
[402216079,1768606286067,-500.0,0.00022739,3]
[402216080,1768606286077,-500.0,0.00022739,3]
[402216081,1768606286086,-500.0,0.00022739,3]
[402216082,1768606286096,-2478.08,0.00022739,3]
[402216083,1768606286105,-500.0,0.00022739,3]
[402216084,1768606286115,-500.0,0.00022739,3]
[402216085,1768606286125,-839.15,0.00022739,3]
[402216086,1768606286140,-500.0,0.00022739,3]
[402216087,1768606286150,-500.0,0.00022739,3]
[402216088,1768606286160,-500.0,0.00022739,3]
[402216089,1768606286170,-500.0,0.00022739,3]
[402216090,1768606286180,-500.0,0.00022739,3]
[402216091,1768606286190,-627.89,0.00022739,3]
[402216092,1768606286200,-500.0,0.00022739,3]
[402216093,1768606286210,-643.23,0.00022739,3]
[402216094,1768606286220,-500.0,0.00022739,3]
[402216095,1768606286230,-2041.61,0.00022739,3]
[402216096,1768606286240,-500.0,0.00022739,3]
[402216097,1768606286250,-500.0,0.00022739,3]
[402216098,1768606286261,-500.0,0.00022739,3]
[402216099,1768606286271,-500.0,0.00022739,3]
[402216100,1768606286281,-883.96,0.00022739,3]
[402216101,1768606286291,-500.0,0.00022739,3]
[402216102,1768606286301,-972.04,0.00022739,3]
[402216103,1768606286313,-500.0,0.00022739,3]
[402216104,1768606286323,-500.0,0.00022739,3]
[402216105,1768606286333,-838.66,0.00022739,3]
[402216106,1768606286342,-1000.0,0.00022739,2]
[402216107,1768606286352,-500.0,0.00022739,3]
[402216108,1768606286363,-500.0,0.00022739,3]
[402216109,1768606286374,-1118.18,0.00022739,3]
[402216110,1768606286384,-752.46,0.00022739,3]
[402216111,1768606286394,-1177.42,0.00022739,3]
[402216112,1768606286404,-500.0,0.00022739,3]
[402216113,1768606286414,-500.0,0.00022739,3]
[402216114,1768606286425,-823.41,0.00022739,3]
[402216115,1768606286435,-1019.12,0.00022739,3]
[402216116,1768606286446,-760.5,0.00022739,3]
[402216117,1768606286456,-1342.67,0.00022739,3]
[402216118,1768606286468,-500.0,0.00022739,3]
[402216119,1768606286478,-1683.6,0.00022739,3]
[402216120,1768606286488,-500.0,0.00022739,3]
[402216121,1768606286498,-863.28,0.00022739,3]
[402216122,1768606286508,-500.0,0.00022739,3]
[402216123,1768606286518,-884.65,0.00022739,3]
[402216124,1768606286528,-500.0,0.00022739,3]
[402216125,1768606286538,-1291.69,0.00022739,3]
[402216126,1768606286548,-500.0,0.00022739,3]
[402216127,1768606286558,-1793.94,0.00022739,3]
[402216128,1768606286568,-500.0,0.00022739,3]
[402216129,1768606286578,-1564.17,0.00022739,3]
[402216130,1768606286588,-500.0,0.00022739,3]
[402216131,1768606286598,-675.11,0.00022739,3]
[402216132,1768606286608,-1119.18,0.00022739,3]
[402216133,1768606286618,-500.0,0.00022739,3]
[402216134,1768606286628,-500.0,0.00022739,3]
[402216135,1768606286638,-1730.4,0.00022739,3]
[402216136,1768606286652,-500.0,0.00022739,3]
[402216137,1768606286662,-1188.4,0.00022739,3]